fUSD/lending_fUSD_20250814
["ID","MTS","AMOUNT","RATE_DAILY","PERIOD"]
[379123371,1755151911897,-3929.46,0.00054794,120]
[379123372,1755151911907,-3929.46,0.00054794,120]
[379123373,1755151911915,-3929.46,0.00054794,120]
[379123374,1755151911924,-400.0,0.00054794,120]
[379123375,1755151911935,-3929.46,0.00054794,120]
[379123376,1755151911944,-3929.46,0.00054794,120]
[379123377,1755151911954,-400.0,0.00054794,120]
[379123378,1755151911964,-3929.46,0.00054794,120]
[379123379,1755151911974,-3929.46,0.00054794,120]
[379123380,1755151911983,-3929.46,0.00054794,120]
[379123381,1755151911993,-3929.49530004,0.00054794,120]
[379123382,1755151912002,-400.0,0.00054794,120]
[379123383,1755151912011,-459.89,0.00054794,120]
[379123384,1755151912020,-1388.84,0.00054794,120]
[379123385,1755151912029,-1470.66,0.00054794,120]
[379123386,1755151912038,-400.0,0.00054794,120]
[379123387,1755151912048,-400.0,0.00054794,120]
[379123388,1755151912057,-400.0,0.00054794,120]
[379123389,1755151912066,-1279.9,0.00054794,120]
[379123390,1755151912075,-400.0,0.00054794,120]
[379123391,1755151912085,-400.0,0.00054794,30]
[379123392,1755151912095,-1557.49,0.00054794,120]
[379123393,1755151912107,-400.0,0.00054794,120]
[379123394,1755151912120,-4796.07,0.00054794,120]
[379123395,1755151912129,-400.0,0.00054794,120]
[379123396,1755151912138,-1397.98,0.00054794,120]
[379123397,1755151912147,-400.0,0.00054794,120]
[379123398,1755151912156,-1255.71,0.00054794,120]
[379123399,1755151912165,-3562.17,0.00054794,120]
[379123400,1755151912174,-400.0,0.00054794,120]
[379123401,1755151912183,-2231.09,0.00054794,120]
[379123402,1755151912193,-594.96,0.00054794,120]
[379123403,1755151912203,-1188.89,0.00054794,120]
[379123404,1755151912212,-400.0,0.00054794,120]
[379123405,1755151912223,-411.57,0.00054794,120]
[379123406,1755151912232,-753.54,0.00054794,120]
[379123407,1755151912242,-400.0,0.00054794,120]
[379123408,1755151912251,-400.0,0.00054794,120]
[379123409,1755151912260,-400.0,0.00054794,120]
[379123410,1755151912269,-400.0,0.00054794,120]
[379123411,1755151912279,-2275.13,0.00054794,120]
[379123412,1755151912289,-400.0,0.00054794,120]
[379123413,1755151912298,-4179.34,0.00054794,120]
[379123414,1755151912307,-155.15655956,0.00054794,120]
[379123415,1755151912316,-3602.81,0.00054794,120]
[379123416,1755151912325,-400.0,0.00054794,120]
[379123417,1755151912334,-697.24,0.00054794,120]
[379123418,1755151912343,-400.0,0.00054794,120]
[379123419,1755151912352,-1091.59,0.00054794,120]
[379123420,1755151912360,-400.0,0.00054794,120]
[379123421,1755151912369,-400.0,0.00054794,120]
[379123422,1755151912379,-400.0,0.00054794,120]
[379123423,1755151912388,-400.0,0.00054794,120]
[379123424,1755151912397,-657.82,0.00054794,120]
[379123425,1755151912406,-1943.71,0.00054794,120]
[379123426,1755151912415,-1947.43,0.00054794,120]
[379123427,1755151912424,-621.34,0.00054794,120]
[379123428,1755151912433,-400.0,0.00054794,120]
[379123429,1755151912443,-2885.05,0.00054794,120]
[379123430,1755151912452,-1136.53,0.00054794,120]
[379123431,1755151912461,-409.26,0.00054794,120]
[379123432,1755151912470,-400.0,0.00054794,120]
[379123433,1755151912479,-400.0,0.00054794,120]
[379123434,1755151912488,-874.51,0.00054794,120]
[379123435,1755151912498,-1523.92,0.00054794,120]
[379123436,1755151912507,-525.55,0.00054794,120]
[379123437,1755151912516,-529.15146573,0.00054794,30]
[379123438,1755151912525,-400.0,0.00054794,120]
[379123439,1755151912534,-400.0,0.00054794,120]
[379123440,1755151912544,-403.54614457,0.00054794,120]
[379123441,1755151912553,-400.0,0.00054794,120]
[379123442,1755151912563,-2634.74,0.00054794,120]
[379123443,1755151912572,-400.0,0.00054794,120]
[379123444,1755151912581,-400.0,0.00054794,120]
[379123445,1755151912590,-400.0,0.00054794,120]
[379123446,1755151912599,-569.15,0.00054794,120]
[379123447,1755151912608,-526.01,0.00054794,120]
[379123448,1755151912618,-1435.39,0.00054794,120]
[379123449,1755151912627,-400.0,0.00054794,120]
[379123450,1755151912637,-400.0,0.00054794,120]
[379123451,1755151912646,-400.0,0.00054794,120]
[379123452,1755151912655,-400.0,0.00054794,120]
[379123453,1755151912664,-400.0,0.00054794,120]
[379123454,1755151912673,-3145.12,0.00054794,120]
[379123455,1755151912683,-400.0,0.00054794,120]
[379123456,1755151912692,-400.0,0.00054794,120]
[379123457,1755151912701,-400.0,0.00054794,120]
[379123458,1755151912710,-973.72,0.00054794,120]
[379123459,1755151912719,-1535.26,0.00054794,120]
[379123460,1755151912729,-400.0,0.00054794,120]
[379123461,1755151912739,-400.0,0.00054794,120]
[379123462,1755151912748,-400.0,0.00054794,120]
[379123463,1755151912757,-502.53,0.00054794,120]
[379123464,1755151912767,-400.0,0.00054794,120]
[379123465,1755151912776,-1237.4,0.00054794,120]
[379123466,1755151912785,-400.0,0.00054794,120]
[379123467,1755151912797,-400.0,0.00054794,120]
[379123468,1755151912807,-400.0,0.00054794,120]
[379123469,1755151912816,-400.0,0.00054794,120]
[379123470,1755151912826,-400.0,0.00054794,120]
[379123471,1755151912836,-400.0,0.00054794,120]
[379123472,1755151912846,-400.0,0.00054794,7]
[379123473,1755151912856,-410.78896627,0.00054794,120]
[379123474,1755151912866,-994.56,0.00054794,120]
[379123475,1755151912878,-3930.5,0.00054794,120]
[379123476,1755151912887,-851.4,0.00054794,120]
[379123477,1755151912897,-1688.6,0.00054794,120]
[379123478,1755151912908,-400.0,0.00054794,120]
[379123479,1755151912918,-417.86,0.00054794,120]
[379123480,1755151912928,-400.0,0.00054794,120]
[379123481,1755151912941,-400.0,0.00054794,120]
[379123482,1755151912950,-1138.14,0.00054794,120]
[379123483,1755151912962,-400.0,0.00054794,120]
[379123484,1755151912974,-1376.47,0.00054794,120]
[379123485,1755151912984,-400.0,0.00054794,120]
[379123486,1755151912994,-1376.47,0.00054794,120]
[379123487,1755151913004,-1376.47,0.00054794,120]
[379123488,1755151913016,-1376.47,0.00054794,120]
[379123489,1755151913026,-1376.47,0.00054794,120]
[379123490,1755151913036,-1376.47,0.00054794,120]
[379123491,1755151913046,-1376.47,0.00054794,120]
[379123492,1755151913056,-1376.47,0.00054794,120]
[379123493,1755151913066,-2306.91,0.00054794,120]
[379123494,1755151913076,-1376.47,0.00054794,120]
[379123495,1755151913086,-1376.47,0.00054794,120]
[379123496,1755151913096,-400.0,0.00054794,120]
[379123497,1755151913106,-1376.47,0.00054794,120]
[379123498,1755151913116,-1376.47,0.00054794,120]
[379123499,1755151913127,-1376.47,0.00054794,120]
[379123500,1755151913136,-1376.47,0.00054794,120]
[379123501,1755151913147,-400.0,0.00054794,120]
[379123502,1755151913158,-1376.47,0.00054794,120]
[379123503,1755151913168,-1376.47,0.00054794,120]
[379123504,1755151913179,-1376.47,0.00054794,120]
[379123505,1755151913189,-1376.47,0.00054794,120]
[379123506,1755151913199,-1376.47,0.00054794,120]
[379123507,1755151913209,-1376.47,0.00054794,120]
[379123508,1755151913218,-1932.47,0.00054794,120]
[379123509,1755151913228,-1449.35,0.00054794,120]
[379123510,1755151913238,-1376.47,0.00054794,120]
[379123511,1755151913248,-1376.47,0.00054794,120]
[379123512,1755151913258,-400.0,0.00054794,120]
[379123513,1755151913268,-1376.47,0.00054794,120]
[379123514,1755151913278,-2898.61,0.00054794,120]
[379123515,1755151913288,-1376.69643659,0.00054794,120]
[379123516,1755151913299,-400.0,0.00054794,120]
[379123517,1755151913309,-400.0,0.00054794,120]
[379123518,1755151913319,-597.08,0.00054794,120]
[379123519,1755151913329,-400.0,0.00054794,120]
[379123520,1755151913338,-977.15,0.00054794,120]
[379123521,1755151913348,-645.84,0.00054794,120]
[379123522,1755151913359,-605.25,0.00054794,120]
[379123523,1755151913368,-400.0,0.00054794,120]
[379123524,1755151913379,-400.0,0.00054794,120]
[379123525,1755151913388,-400.0,0.00054794,120]
[379123526,1755151913398,-640.09,0.00054794,120]
[379123527,1755151913408,-400.0,0.00054794,120]
[379123528,1755151913418,-2143.17,0.00054794,120]
[379123529,1755151913427,-1504.96,0.00054794,30]
[379123530,1755151913437,-400.0,0.00054794,120]
[379123531,1755151913447,-4441.35,0.00054794,60]
[379123532,1755151913457,-400.0,0.00054794,120]
[379123533,1755151913467,-1063.89,0.00054794,120]
[379123534,1755151913477,-400.0,0.00054794,120]
[379123535,1755151913487,-400.0,0.00054794,120]
[379123536,1755151913496,-3704.26,0.00054794,120]
[379123537,1755151913506,-749.81,0.00054794,120]
[379123538,1755151913516,-400.0,0.00054794,120]
[379123539,1755151913526,-400.0,0.00054794,120]
[379123540,1755151913535,-796.46,0.00054794,120]
[379123541,1755151913545,-680.22,0.00054794,120]
[379123542,1755151913556,-400.0,0.00054794,120]
[379123543,1755151913566,-400.0,0.00054794,120]
[379123544,1755151913576,-922.0,0.00054794,120]
[379123545,1755151913586,-2057.96,0.00054794,120]
[379123546,1755151913595,-1635.41,0.00054794,120]
[379123547,1755151913605,-400.0,0.00054794,120]
[379123548,1755151913616,-2448.92,0.00054794,120]
[379123549,1755151913627,-3741.78,0.00054794,120]
[379123550,1755151913637,-400.0,0.00054794,120]
[379123551,1755151913647,-400.0,0.00054794,120]
[379123552,1755151913658,-1764.54,0.00054794,120]
[379123553,1755151913668,-643.99,0.00054794,120]
[379123554,1755151913678,-400.0,0.00054794,120]
[379123555,1755151913687,-773.35,0.00054794,120]
[379123556,1755151913697,-400.0,0.00054794,120]
[379123557,1755151913712,-400.0,0.00054794,120]
[379123558,1755151913723,-400.0,0.00054794,120]
[379123559,1755151913733,-400.0,0.00054794,120]
[379123560,1755151913743,-806.63,0.00054794,120]
[379123561,1755151913752,-400.0,0.00054794,120]
[379123562,1755151913762,-400.0,0.00054794,120]
[379123563,1755151913772,-400.0,0.00054794,120]
[379123564,1755151913782,-3697.49,0.00054794,120]
[379123565,1755151913791,-400.0,0.00054794,120]
[379123566,1755151913801,-400.0,0.00054794,120]
[379123567,1755151913811,-400.0,0.00054794,120]
[379123568,1755151913821,-400.0,0.00054794,120]
[379123569,1755151913831,-2202.06,0.00054794,120]
[379123570,1755151913841,-2618.33,0.00054794,120]
[379123571,1755151913851,-417.19803394,0.00054794,120]
[379123572,1755151913861,-400.0,0.00054794,120]
[379123573,1755151913871,-422.63,0.00054794,120]
[379123574,1755151913881,-1232.69,0.00054794,120]
[379123575,1755151913891,-521.68419524,0.00054794,120]
[379123576,1755151913901,-400.0,0.00054794,120]
[379123577,1755151913911,-400.0,0.00054794,120]
[379123578,1755151913922,-956.31,0.00054794,120]
[379123579,1755151913934,-787.12,0.00054794,120]
[379123580,1755151913946,-946.92,0.00054794,120]
[379123581,1755151913956,-400.0,0.00054794,120]
[379123582,1755151913966,-400.0,0.00054794,120]
[379123583,1755151913976,-400.0,0.00054794,120]
[379123584,1755151913986,-400.0,0.00054794,120]
[379123585,1755151913996,-2908.77,0.00054794,120]
[379123586,1755151914006,-698.51,0.00054794,120]
[379123587,1755151914016,-1772.64,0.00054794,120]
[379123588,1755151914036,-400.0,0.00054794,120]
[379123589,1755151914046,-414.04,0.00054794,120]
[379123590,1755151914057,-3094.08,0.00054794,120]
[379123591,1755151914067,-1082.85,0.00054794,120]
[379123592,1755151914078,-1462.02,0.00054794,120]
[379123593,1755151914089,-1237.68,0.00054794,120]
[379123594,1755151914099,-1768.49,0.00054794,120]
[379123595,1755151914111,-400.0,0.00054794,120]
[379123596,1755151914122,-400.0,0.00054794,120]
[379123597,1755151914132,-1704.18,0.00054794,120]
[379123598,1755151914144,-400.0,0.00054794,120]
[379123599,1755151914155,-1596.72,0.00054794,120]
[379123600,1755151914167,-970.53,0.00054794,120]
[379123601,1755151914177,-2462.23,0.00054794,120]
[379123602,1755151914188,-1830.0,0.00054794,120]
[379123603,1755151914198,-2324.76,0.00054794,120]
[379123604,1755151914209,-400.0,0.00054794,120]
[379123605,1755151914220,-400.0,0.00054794,120]
[379123606,1755151914231,-400.0,0.00054794,120]
[379123607,1755151914242,-1017.9,0.00054794,120]
[379123608,1755151914253,-1510.97,0.00054794,120]
[379123609,1755151914264,-400.0,0.00054794,120]
[379123610,1755151914274,-2038.31,0.00054794,120]
[379123611,1755151914285,-1143.04,0.00054794,120]
[379123612,1755151914295,-755.88,0.00054794,120]
[379123613,1755151914305,-713.52,0.00054794,120]
[379123614,1755151914317,-400.0,0.00054794,120]
[379123615,1755151914327,-400.0,0.00054794,120]
[379123616,1755151914339,-260.52468628,0.00054794,120]
[379123617,1755151914350,-718.87,0.00054794,120]
[379123618,1755151914360,-400.0,0.00054794,120]
[379123619,1755151914371,-556.99,0.00054794,120]
[379123620,1755151914381,-400.0,0.00054794,120]
[379123621,1755151914391,-2571.66,0.00054794,120]
[379123622,1755151914402,-400.0,0.00054794,120]
[379123623,1755151914412,-400.0,0.00054794,120]
[379123624,1755151914423,-400.0,0.00054794,120]
[379123625,1755151914433,-400.0,0.00054794,120]
[379123626,1755151914443,-1807.99,0.00054794,120]
[379123627,1755151914454,-400.0,0.00054794,120]
[379123628,1755151914469,-400.0,0.00054794,120]
[379123629,1755151914480,-533.67,0.00054794,120]
[379123630,1755151914491,-407.33,0.00054794,120]
[379123631,1755151914502,-400.0,0.00054794,120]
[379123632,1755151914512,-1087.08,0.00054794,120]
[379123633,1755151914523,-400.0,0.00054794,120]
[379123634,1755151914534,-2899.38,0.00054794,120]
[379123635,1755151914545,-400.0,0.00054794,120]
[379123636,1755151914556,-400.0,0.00054794,120]
[379123637,1755151914566,-400.0,0.00054794,120]
[379123638,1755151914577,-734.38,0.00054794,120]
[379123639,1755151914588,-400.0,0.00054794,120]
[379123640,1755151914599,-734.38,0.00054794,120]
[379123641,1755151914610,-400.0,0.00054794,120]
[379123642,1755151914621,-734.38,0.00054794,120]
[379123643,1755151914632,-734.38,0.00054794,120]
[379123644,1755151914643,-734.38,0.00054794,120]
[379123645,1755151914654,-734.38,0.00054794,120]
[379123646,1755151914665,-924.51,0.00054794,120]
[379123647,1755151914677,-734.38,0.00054794,120]
[379123648,1755151914689,-734.38,0.00054794,120]
[379123649,1755151914699,-734.38,0.00054794,120]
[379123650,1755151914710,-734.38,0.00054794,120]
[379123651,1755151914722,-400.0,0.00054794,120]
[379123652,1755151914733,-734.38,0.00054794,120]
[379123653,1755151914743,-734.38,0.00054794,120]
[379123654,1755151914754,-734.38,0.00054794,120]
[379123655,1755151914765,-734.38,0.00054794,120]
[379123656,1755151914775,-400.0,0.00054794,120]
[379123657,1755151914786,-734.38,0.00054794,120]
[379123658,1755151914797,-734.38,0.00054794,120]
[379123659,1755151914808,-3096.61,0.00054794,120]
[379123660,1755151914818,-734.38,0.00054794,120]
[379123661,1755151914829,-400.0,0.00054794,120]
[379123662,1755151914839,-1363.2,0.00054794,120]
[379123663,1755151914850,-734.38,0.00054794,120]
[379123664,1755151914861,-734.38,0.00054794,120]
[379123665,1755151914875,-734.38,0.00054794,120]
[379123666,1755151914886,-400.0,0.00054794,120]
[379123667,1755151914897,-734.38,0.00054794,120]
[379123668,1755151914913,-400.0,0.00054794,120]
[379123669,1755151914923,-734.38,0.00054794,120]
[379123670,1755151914936,-1524.73,0.00054794,120]
[379123671,1755151914947,-734.38,0.00054794,120]
[379123672,1755151914959,-734.58594151,0.00054794,120]
[379123673,1755151914970,-400.0,0.00054794,120]
[379123674,1755151914982,-2258.0,0.00054794,120]
[379123675,1755151914993,-982.03,0.00054794,120]
[379123676,1755151915003,-400.0,0.00054794,120]
[379123677,1755151915014,-2813.54,0.00054794,120]
[379123678,1755151915026,-1859.15,0.00054794,120]
[379123679,1755151915037,-4282.75,0.00054794,120]
[379123680,1755151915048,-547.38066848,0.00054794,120]
[379123681,1755151915058,-400.0,0.00054794,120]
[379123682,1755151915069,-633.33,0.00054794,120]
[379123683,1755151915080,-589.25,0.00054794,120]
[379123684,1755151915517,-409.89,0.00054794,120]
[379123685,1755151915530,-400.0,0.00054794,120]
[379123686,1755151915540,-2107.25,0.00054794,120]
[379123687,1755151915549,-1069.77,0.00054794,120]
[379123688,1755151915558,-400.0,0.00054794,120]
[379123689,1755151915568,-400.0,0.00054794,120]
[379123690,1755151915577,-425.94,0.00054794,7]
[379123691,1755151915597,-401.20178277,0.00054794,120]
[379123692,1755151915608,-400.0,0.00054794,120]
[379123693,1755151915619,-726.28,0.00054794,120]
[379123694,1755151915631,-563.93,0.00054794,120]
[379123695,1755151915641,-400.0,0.00054794,120]
[379123696,1755151915652,-400.0,0.00054794,120]
[379123697,1755151915662,-400.0,0.00054794,120]
[379123698,1755151915672,-400.0,0.00054794,120]
[379123699,1755151915682,-1895.43,0.00054794,120]
[379123700,1755151915692,-400.0,0.00054794,120]
[379123701,1755151915702,-400.0,0.00054794,120]
[379123702,1755151915713,-2102.01,0.00054794,120]
[379123703,1755151915723,-400.0,0.00054794,120]
[379123704,1755151915734,-1483.04,0.00054794,120]
[379123705,1755151915744,-2422.29,0.00054794,120]
[379123706,1755151915754,-400.0,0.00054794,2]
[379123707,1755151915764,-400.0,0.00054794,120]
[379123708,1755151915775,-400.0,0.00054794,120]
[379123709,1755151915785,-400.0,0.00054794,120]
[379123710,1755151915795,-400.0,0.00054794,120]
[379123711,1755151915804,-610.6,0.00054794,120]
[379123712,1755151915814,-400.0,0.00054794,120]
[379123713,1755151915824,-433.74,0.00054794,120]
[379123714,1755151915834,-418.17453414,0.00054794,120]
[379123715,1755151915845,-500.0,0.00054794,120]
[379123716,1755151915855,-400.0,0.00054794,120]
[379123717,1755151915865,-400.0,0.00054794,120]
[379123718,1755151915876,-400.0,0.00054794,120]
[379123719,1755151915886,-1120.18,0.00054794,120]
[379123720,1755151915896,-1082.87,0.00054794,120]
[379123721,1755151915906,-714.76,0.00054794,120]
[379123722,1755151915916,-2336.16,0.00054794,120]
[379123723,1755151915926,-2365.39,0.00054794,120]
[379123724,1755151915938,-1044.85,0.00054794,120]
[379123725,1755151915948,-1044.85,0.00054794,120]
[379123726,1755151915958,-1881.91,0.00054794,120]
[379123727,1755151915968,-1044.85,0.00054794,120]
[379123728,1755151915979,-1044.85,0.00054794,120]
[379123729,1755151915989,-400.0,0.00054794,120]
[379123730,1755151915999,-1044.85,0.00054794,120]
[379123731,1755151916009,-748.74,0.00054794,120]
[379123732,1755151916019,-1044.85,0.00054794,120]
[379123733,1755151916029,-1986.2,0.00054794,120]
[379123734,1755151916039,-1044.85,0.00054794,120]
[379123735,1755151916049,-1044.85,0.00054794,120]
[379123736,1755151916059,-1044.85,0.00054794,120]
[379123737,1755151916068,-1044.85,0.00054794,120]
[379123738,1755151916078,-400.0,0.00054794,120]
[379123739,1755151916087,-1044.85,0.00054794,120]
[379123740,1755151916099,-1044.85,0.00054794,120]
[379123741,1755151916108,-1044.85,0.00054794,120]
[379123742,1755151916119,-1044.85,0.00054794,120]
[379123743,1755151916129,-1044.85,0.00054794,120]
[379123744,1755151916139,-1044.85,0.00054794,120]
[379123745,1755151916150,-400.0,0.00054794,120]
[379123746,1755151916160,-1044.85,0.00054794,120]
[379123747,1755151916170,-1044.85,0.00054794,120]
[379123748,1755151916180,-1044.85,0.00054794,120]
[379123749,1755151916189,-1044.85,0.00054794,120]
[379123750,1755151916199,-1044.85,0.00054794,120]
[379123751,1755151916209,-1044.85,0.00054794,120]
[379123752,1755151916218,-1044.85,0.00054794,120]
[379123753,1755151916228,-1045.03054088,0.00054794,120]
[379123754,1755151916238,-485.57016567,0.00054794,120]
[379123755,1755151916248,-1431.81,0.00054794,120]
[379123756,1755151916258,-400.0,0.00054794,120]
[379123757,1755151916267,-491.79,0.00054794,120]
[379123758,1755151916277,-716.54,0.00054794,120]
[379123759,1755151916287,-2604.84,0.00054794,120]
[379123760,1755151916297,-400.0,0.00054794,120]
[379123761,1755151916313,-1150.55,0.00054794,120]
[379123762,1755151916323,-400.0,0.00054794,120]
[379123763,1755151916335,-561.48,0.00054794,120]
[379123764,1755151916346,-400.0,0.00054794,120]
[379123765,1755151916356,-400.0,0.00054794,120]
[379123766,1755151916367,-400.0,0.00054794,120]
[379123767,1755151916380,-400.0,0.00054794,120]
[379123768,1755151916390,-400.0,0.00054794,120]
[379123769,1755151916402,-2590.07,0.00054794,120]
[379123770,1755151916413,-3380.76,0.00054794,120]
[379123771,1755151916423,-400.0,0.00054794,120]
[379123772,1755151916434,-773.51,0.00054794,120]
[379123773,1755151916444,-1105.75,0.00054794,120]
[379123774,1755151916455,-644.06,0.00054794,120]
[379123775,1755151916465,-400.0,0.00054794,120]
[379123776,1755151916475,-400.0,0.00054794,120]
[379123777,1755151916486,-400.0,0.00054794,120]
[379123778,1755151916497,-400.0,0.00054794,120]
[379123779,1755151916507,-921.37,0.00054794,120]
[379123780,1755151916518,-400.0,0.00054794,120]
[379123781,1755151916528,-1957.54,0.00054794,120]
[379123782,1755151916539,-400.0,0.00054794,120]
[379123783,1755151916550,-3308.64,0.00054794,120]
[379123784,1755151916560,-400.0,0.00054794,120]
[379123785,1755151916570,-828.75,0.00054794,120]
[379123786,1755151916580,-400.0,0.00054794,120]
[379123787,1755151916591,-1263.09,0.00054794,120]
[379123788,1755151916601,-862.06,0.00054794,120]
[379123789,1755151916613,-400.0,0.00054794,120]
[379123790,1755151916624,-4194.8,0.00054794,120]
[379123791,1755151916635,-675.62,0.00054794,120]
[379123792,1755151916646,-2648.82,0.00054794,120]
[379123793,1755151916656,-400.0,0.00054794,120]
[379123794,1755151916666,-400.0,0.00054794,120]
[379123795,1755151916677,-448.17348651,0.00054794,120]
[379123796,1755151916687,-3141.33,0.00054794,120]
[379123797,1755151916698,-400.0,0.00054794,120]
[379123798,1755151916709,-799.3,0.00054794,120]
[379123799,1755151916719,-915.76,0.00054794,120]
[379123800,1755151916731,-1488.87,0.00054794,120]
[379123801,1755151916741,-4788.64,0.00054794,120]
[379123802,1755151916751,-446.06,0.00054794,120]
[379123803,1755151916761,-400.0,0.00054794,120]
[379123804,1755151916771,-422.44,0.00054794,120]
[379123805,1755151916781,-558.99,0.00054794,120]
[379123806,1755151916792,-828.18,0.00054794,120]
[379123807,1755151916802,-3660.27,0.00054794,120]
[379123808,1755151916812,-400.0,0.00054794,7]
[379123809,1755151916822,-4915.63,0.00054794,120]
[379123810,1755151916833,-400.0,0.00054794,12]
[379123811,1755151916843,-400.0,0.00054794,120]
[379123812,1755151916853,-400.0,0.00054794,120]
[379123813,1755151916863,-400.0,0.00054794,120]
[379123814,1755151916873,-1671.55,0.00054794,120]
[379123815,1755151916884,-2959.01,0.00054794,120]
[379123816,1755151916894,-400.0,0.00054794,120]
[379123817,1755151916904,-400.0,0.00054794,120]
[379123818,1755151916914,-774.13,0.00054794,120]
[379123819,1755151916924,-588.75,0.00054794,120]
[379123820,1755151916940,-3563.05,0.00054794,120]
[379123821,1755151916950,-1411.75,0.00054794,120]
[379123822,1755151916960,-400.0,0.00054794,120]
[379123823,1755151916970,-400.0,0.00054794,120]
[379123824,1755151916982,-509.53216926,0.00054794,120]
[379123825,1755151916992,-3034.35,0.00054794,120]
[379123826,1755151917003,-400.0,0.00054794,120]
[379123827,1755151917014,-400.0,0.00054794,120]
[379123828,1755151917029,-421.42,0.00054794,120]
[379123829,1755151917040,-400.0,0.00054794,120]
[379123830,1755151917051,-10132.26,0.00054794,120]
[379123831,1755151917061,-400.0,0.00054794,120]
[379123832,1755151917071,-400.0,0.00054794,120]
[379123833,1755151917082,-400.0,0.00054794,120]
[379123834,1755151917093,-3837.31,0.00054794,120]
[379123835,1755151917104,-2355.34,0.00054794,120]
[379123836,1755151917114,-400.0,0.00054794,120]
[379123837,1755151917125,-400.0,0.00054794,120]
[379123838,1755151917135,-619.36,0.00054794,120]
[379123839,1755151917146,-400.0,0.00054794,120]
[379123840,1755151917156,-3741.18,0.00054794,120]
[379123841,1755151917166,-530.45,0.00054794,120]
[379123842,1755151917176,-400.0,0.00054794,120]
[379123843,1755151917187,-2416.13,0.00054794,120]
[379123844,1755151917197,-5302.86,0.00054794,120]
[379123845,1755151917207,-400.0,0.00054794,120]
[379123846,1755151917218,-400.0,0.00054794,120]
[379123847,1755151917228,-667.69,0.00054794,120]
[379123848,1755151917238,-1284.05,0.00054794,120]
[379123849,1755151917248,-2632.73,0.00054794,120]
[379123850,1755151917258,-1508.12,0.00054794,120]
[379123851,1755151917268,-1084.87,0.00054794,120]
[379123852,1755151917278,-1508.12,0.00054794,120]
[379123853,1755151917288,-1508.12,0.00054794,120]
[379123854,1755151917299,-1508.12,0.00054794,120]
[379123855,1755151917309,-405.17,0.00054794,120]
[379123856,1755151917319,-400.0,0.00054794,120]
[379123857,1755151917329,-400.0,0.00054794,120]
[379123858,1755151917339,-400.0,0.00054794,120]
[379123859,1755151917349,-981.71,0.00054794,120]
[379123860,1755151917359,-400.0,0.00054794,120]
[379123861,1755151917370,-400.0,0.00054794,120]
[379123862,1755151917382,-400.0,0.00054794,120]
[379123863,1755151917392,-3441.48,0.00054794,120]
[379123864,1755151917403,-400.0,0.00054794,120]
[379123865,1755151917413,-1508.12,0.00054794,120]
[379123866,1755151917424,-1554.4,0.00054794,120]
[379123867,1755151917435,-1508.12,0.00054794,120]
[379123868,1755151917445,-5684.34,0.00054794,120]
[379123869,1755151917456,-1508.12,0.00054794,120]
[379123870,1755151917466,-400.0,0.00054794,120]